fUST/lending_fUST_20240331
["ID","MTS","AMOUNT","RATE_DAILY","PERIOD"]
[321043679,1711814444673,19075.56723381,0.00021,2]
[321043680,1711814459628,5175.26710662,0.0002079,2]
[321043681,1711814464664,4215.23370884,0.00021,2]
[321043682,1711814466762,156.10838949,0.00021,2]
[321043683,1711814475669,345.4871577,0.0002079,2]
[321043698,1711814836234,-631.14008847,0.00038954,2]
[321043699,1711814836256,-298.002008,0.0003944,2]
[321043700,1711814836276,-400.0,0.00039466,5]
[321043701,1711814836297,-24890.0,0.00039467,2]
[321043702,1711814836319,-168.9354948,0.00039613,2]
[321043703,1711814836342,-168.490338,0.0004,2]
[321043704,1711814836362,-171.526531,0.0004,2]
[321043705,1711814836382,-175.67,0.00040178,2]
[321043706,1711814836401,-153.60636879,0.000409,2]
[321043707,1711814836421,-500.0,0.00040973,4]
[321043708,1711814836441,-500.0,0.00040973,4]
[321043709,1711814836462,-2131.88,0.00040973,4]
[321043710,1711814836483,-500.0,0.00040973,31]
[321043711,1711814836504,-500.0,0.00040973,31]
[321043712,1711814836524,-500.0,0.00040973,31]
[321043713,1711814836546,-500.0,0.00040973,31]
[321043714,1711814836567,-500.0,0.00040973,31]
[321043715,1711814836587,-500.0,0.00040973,31]
[321043716,1711814836612,-500.0,0.00040973,31]
[321043717,1711814836634,-500.0,0.00040973,31]
[321043718,1711814836655,-500.0,0.00040973,31]
[321043719,1711814836676,-500.0,0.00040973,31]
[321043720,1711814836697,-500.0,0.00040973,31]
[321043721,1711814836719,-500.0,0.00040973,31]
[321043722,1711814836740,-500.0,0.00040973,31]
[321043723,1711814836761,-500.0,0.00040973,31]
[321043724,1711814836781,-500.0,0.00040973,31]
[321043725,1711814836802,-500.0,0.00040973,31]
[321043726,1711814836823,-500.0,0.00040973,31]
[321043727,1711814836843,-500.0,0.00040973,31]
[321043728,1711814836864,-500.0,0.00040973,31]
[321043729,1711814836886,-500.0,0.00040973,31]
[321043730,1711814836908,-500.0,0.00040973,31]
[321043731,1711814836930,-500.0,0.00040973,31]
[321043732,1711814837022,-500.0,0.00040973,31]
[321043733,1711814837049,-633.84708825,0.00040973,31]
[321043734,1711814837069,-500.0,0.00040973,31]
[321043735,1711814837089,-500.0,0.00040973,31]
[321043736,1711814837109,-500.0,0.00040973,31]
[321043737,1711814837129,-500.0,0.00040973,31]
[321043738,1711814837150,-500.0,0.00040973,31]
[321043739,1711814837169,-500.0,0.00040973,31]
[321043740,1711814837189,-500.0,0.00040973,31]
[321043741,1711814837209,-500.0,0.00040973,31]
[321043742,1711814837231,-500.0,0.00040973,31]
[321043743,1711814837252,-500.0,0.00040973,31]
[321043744,1711814837272,-3448.58,0.00040973,4]
[321043745,1711814837293,-500.0,0.00040973,31]
[321043746,1711814837313,-500.0,0.00040973,31]
[321043747,1711814837334,-500.0,0.00040973,31]
[321043748,1711814837358,-500.0,0.00040973,31]
[321043749,1711814837379,-500.0,0.00040973,31]
[321043750,1711814837401,-200.0,0.00040973,31]
[321043751,1711814837421,-579.91152702,0.00040974,4]
[321043752,1711814837442,-500.0,0.00040974,4]
[321043753,1711814837463,-502.55687801,0.00040974,4]
[321043754,1711814837483,-158.72599783,0.00040974,4]
[321043755,1711814837503,-500.0,0.00040974,4]
[321043756,1711814837523,-500.0,0.00040974,4]
[321043757,1711814837543,-374.35402965,0.00040974,4]
[321043758,1711814837567,-500.0,0.00040974,4]
[321043759,1711814837586,-500.0,0.00040974,4]
[321043760,1711814837607,-535.82411574,0.00040974,4]
[321043761,1711814837626,-739.06,0.00040974,4]
[321043762,1711814837644,-500.0,0.00040974,4]
[321043763,1711814837664,-500.0,0.00040974,4]
[321043764,1711814837684,-500.0,0.00040974,4]
[321043765,1711814837705,-500.0,0.00040974,4]
[321043766,1711814837725,-500.0,0.00040974,4]
[321043767,1711814837744,-500.0,0.00040974,4]
[321043768,1711814837763,-500.0,0.00040974,4]
[321043769,1711814837782,-575.79778352,0.00040974,4]
[321043770,1711814837802,-2452.02,0.00040974,4]
[321043771,1711814837821,-500.0,0.00040974,4]
[321043772,1711814837840,-182.9898918,0.00040974,4]
[321043773,1711814837859,-500.0,0.00040974,4]
[321043774,1711814837879,-500.0,0.00040974,4]
[321043775,1711814837899,-500.0,0.00040974,4]
[321043776,1711814837918,-921.31,0.00040974,4]
[321043777,1711814837939,-2484.71,0.00040974,4]
[321043778,1711814837960,-500.0,0.00040974,4]
[321043779,1711814837981,-500.0,0.00040974,4]
[321043780,1711814838003,-500.0,0.00040974,4]
[321043781,1711814838024,-500.0,0.00040974,4]
[321043782,1711814838044,-500.0,0.00040974,4]
[321043783,1711814838064,-500.0,0.00040974,4]
[321043784,1711814838084,-463.485095,0.00040974,4]
[321043785,1711814838104,-500.0,0.00040974,4]
[321043786,1711814838123,-500.0,0.00040974,4]
[321043787,1711814838143,-2359.94,0.00040974,4]
[321043788,1711814838163,-569.46,0.00040974,4]
[321043789,1711814838182,-500.0,0.00040974,4]
[321043790,1711814838201,-574.81,0.00040974,4]
[321043791,1711814838227,-1341.65,0.00040974,4]
[321043792,1711814838246,-500.0,0.00040974,4]
[321043793,1711814838267,-641.98,0.00040974,4]
[321043794,1711814838286,-926.23,0.00040974,4]
[321043795,1711814838306,-2231.82,0.00040974,4]
[321043796,1711814838325,-518.22,0.00040974,4]
[321043797,1711814838344,-500.0,0.00040974,4]
[321043798,1711814838363,-637.09,0.00040974,4]
[321043799,1711814838450,-524.56501852,0.00040974,4]
[321043800,1711814838470,-626.25,0.00040974,4]
[321043801,1711814838489,-500.0,0.00040974,4]
[321043802,1711814838508,-12419.17,0.00040974,4]
[321043803,1711814838527,-500.0,0.00040974,4]
[321043804,1711814838548,-151.0,0.00040974,4]
[321043805,1711814838568,-500.0,0.00040974,4]
[321043806,1711814838588,-2647.05,0.00040974,4]
[321043807,1711814838608,-500.0,0.00040974,4]
[321043808,1711814838632,-500.0,0.00040974,4]
[321043809,1711814838653,-4268.9,0.00040974,4]
[321043810,1711814838672,-510.67352786,0.00040974,4]
[321043811,1711814838692,-500.0,0.00040974,4]
[321043812,1711814838713,-500.0,0.00040974,4]
[321043813,1711814838736,-500.0,0.00040974,4]
[321043814,1711814838766,-500.0,0.00040974,4]
[321043815,1711814838786,-500.0,0.00040974,4]
[321043816,1711814838808,-500.0,0.00040974,4]
[321043817,1711814838828,-1310.88,0.00040974,4]
[321043818,1711814838848,-500.0,0.00040974,4]
[321043819,1711814838868,-500.0,0.00040974,4]
[321043820,1711814838888,-500.0,0.00040974,4]
[321043821,1711814838909,-251.65172548,0.00040975,4]
[321043822,1711814838929,-500.0,0.00040975,4]
[321043823,1711814838950,-500.0,0.00040975,4]
[321043824,1711814838971,-500.0,0.00040975,4]
[321043825,1711814838992,-500.0,0.00040975,4]
[321043826,1711814839013,-500.0,0.00040975,4]
[321043827,1711814839033,-500.0,0.00040975,4]
[321043828,1711814839054,-500.0,0.00040975,4]
[321043829,1711814839073,-2908.18,0.00040975,4]
[321043830,1711814839093,-500.0,0.00040975,4]
[321043831,1711814839112,-500.0,0.00040975,4]
[321043832,1711814839131,-1131.81,0.00040975,4]
[321043833,1711814839152,-500.0,0.00040975,4]
[321043834,1711814839171,-500.0,0.00040975,4]
[321043835,1711814839190,-622.87,0.00040975,4]
[321043836,1711814839209,-500.0,0.00040975,4]
[321043837,1711814839228,-500.0,0.00040975,4]
[321043838,1711814839247,-34388.68,0.00040975,4]
[321043839,1711814839267,-9802.57,0.00040975,4]
[321043840,1711814839285,-8233.16,0.00040975,4]
[321043841,1711814839304,-500.0,0.00040975,4]
[321043842,1711814839323,-176.931866,0.00040975,2]
[321043843,1711814839341,-176.931866,0.00040975,2]
[321043844,1711814839361,-176.931866,0.00040975,2]
[321043845,1711814839381,-176.931866,0.00040975,2]
[321043846,1711814839401,-7456.74,0.00040975,4]
[321043847,1711814839420,-500.0,0.00040975,4]
[321043848,1711814839441,-500.0,0.00040975,4]
[321043849,1711814839462,-1036.69,0.00040975,4]
[321043850,1711814839483,-656.73,0.00040975,4]
[321043851,1711814839502,-504.01169563,0.00040975,4]
[321043852,1711814839522,-500.0,0.00040975,4]
[321043853,1711814839541,-500.0,0.00040975,4]
[321043854,1711814839561,-500.0,0.00040975,4]
[321043855,1711814839580,-562.14304311,0.00040975,4]
[321043856,1711814839601,-611.68,0.00040975,4]
[321043857,1711814839621,-500.0,0.00040976,4]
[321043858,1711814839642,-510.96668396,0.00040976,4]
[321043859,1711814839661,-500.0,0.00040976,4]
[321043860,1711814839680,-810.55,0.00040976,4]
[321043861,1711814839699,-502.8312106,0.00040976,4]
[321043862,1711814839785,-518.28,0.00040976,4]
[321043863,1711814839804,-500.0,0.00040976,4]
[321043864,1711814839824,-503.76176083,0.00040976,4]
[321043865,1711814839843,-500.0,0.00040976,4]
[321043866,1711814839862,-500.0,0.00040976,4]
[321043867,1711814839882,-502.36092716,0.00040976,4]
[321043868,1711814839900,-500.0,0.00040976,4]
[321043869,1711814839919,-500.0,0.00040976,4]
[321043870,1711814839938,-503.69259301,0.00040976,4]
[321043871,1711814839958,-500.0,0.00040976,4]
[321043872,1711814839977,-500.0,0.00040976,4]
[321043873,1711814839996,-639.51,0.00040976,4]
[321043874,1711814840017,-500.0,0.00040976,4]
[321043875,1711814840038,-500.0,0.00040976,4]
[321043876,1711814840057,-500.0,0.00040976,4]
[321043877,1711814840077,-500.0,0.00040976,4]
[321043878,1711814840097,-500.0,0.00040976,4]
[321043879,1711814840116,-500.0,0.00040976,4]
[321043880,1711814840135,-500.0,0.00040976,4]
[321043881,1711814840156,-500.0,0.00040976,4]
[321043882,1711814840176,-623.17845251,0.00040976,4]
[321043883,1711814840195,-648.37314929,0.00040976,4]
[321043884,1711814840214,-500.0,0.00040976,4]
[321043885,1711814840234,-500.0,0.00040976,4]
[321043886,1711814840255,-780.77,0.00040976,4]
[321043887,1711814840276,-500.0,0.00040976,4]
[321043888,1711814840295,-500.0,0.00040976,4]
[321043889,1711814840318,-500.0,0.00040976,4]
[321043890,1711814840338,-500.0,0.00040976,4]
[321043891,1711814840358,-500.0,0.00040976,4]
[321043892,1711814840377,-500.0,0.00040976,4]
[321043893,1711814840396,-500.0,0.00040976,4]
[321043894,1711814840415,-500.0,0.00040976,4]
[321043895,1711814840435,-500.0,0.00040976,4]
[321043896,1711814840454,-669.13,0.00040976,4]
[321043897,1711814840473,-500.0,0.00040976,4]
[321043898,1711814840492,-500.0,0.00040976,4]
[321043899,1711814840511,-500.0,0.00040976,4]
[321043900,1711814840532,-500.0,0.00040976,4]
[321043901,1711814840552,-587.60404194,0.00040976,4]
[321043902,1711814840572,-445.904166,0.00040976,4]
[321043903,1711814840592,-500.0,0.00040976,4]
[321043904,1711814840615,-500.0,0.00040976,4]
[321043905,1711814840634,-500.0,0.00040976,4]
[321043906,1711814840655,-2747.73,0.00040976,4]
[321043907,1711814840675,-500.0,0.00040976,4]
[321043908,1711814840695,-500.0,0.00040976,4]
[321043909,1711814840715,-500.0,0.00040976,4]
[321043910,1711814840734,-514.22,0.00040976,4]
[321043911,1711814840754,-523.25,0.00040976,4]
[321043912,1711814840773,-384.36221524,0.00040976,4]
[321043913,1711814840793,-500.0,0.00040976,4]
[321043914,1711814840812,-485.789843,0.00040976,4]
[321043915,1711814840832,-1057.38,0.00040976,4]
[321043916,1711814840851,-500.0,0.00040976,4]
[321043917,1711814840870,-500.0,0.00040976,4]
[321043918,1711814840889,-500.0,0.00040976,4]
[321043919,1711814840908,-500.0,0.00040976,4]
[321043920,1711814840932,-1002.37722972,0.00040976,4]
[321043926,1711814850098,-500.0,0.00040973,4]
[321043928,1711814850119,-882.92,0.00040973,4]
[321043930,1711814850140,-500.0,0.00040974,4]
[321043932,1711814850161,-2722.22406558,0.00040975,4]
[321043950,1711814852189,-2381.18,0.00040973,4]
[321043951,1711814852210,-500.0,0.00040974,4]
[321043952,1711814852231,-1999.91593442,0.00040975,4]
[321043953,1711814852253,-1555.25277028,0.00040976,4]
[321043954,1711814852273,-500.0,0.00040976,4]
[321043955,1711814852294,-500.0,0.00040976,4]
[321043956,1711814852313,-500.0,0.00040976,4]
[321043957,1711814852332,-318.57752913,0.00040976,4]
[321043958,1711814852351,-500.0,0.00040976,4]
[321043959,1711814852370,-1925.2,0.00040976,2]
[321043960,1711814852389,-503.68648156,0.00040976,4]
[321043961,1711814852409,-500.0,0.00040976,4]
[321043962,1711814852428,-500.0,0.00040976,4]
[321043963,1711814852447,-238.31422875,0.00040976,4]
[321043964,1711814852467,-500.0,0.00040976,4]
[321043965,1711814852487,-917.17,0.00040976,4]
[321043966,1711814852506,-500.0,0.00040976,4]
[321043967,1711814852525,-500.0,0.00040976,4]
[321043968,1711814852546,-500.0,0.00040976,4]
[321043969,1711814852564,-500.0,0.00040976,4]
[321043970,1711814852583,-500.0,0.00040976,4]
[321043971,1711814852602,-500.0,0.00040976,4]
[321043972,1711814852625,-500.0,0.00040976,4]
[321043973,1711814852645,-500.0,0.00040976,4]
[321043974,1711814852667,-720.46,0.00040976,4]
[321043975,1711814852685,-500.0,0.00040976,4]
[321043976,1711814852705,-500.0,0.00040976,4]
[321043977,1711814852725,-598.70855586,0.00040976,4]
[321044082,1711815038401,-150.0,0.00038876,2]
[321044084,1711815038411,-550.0,0.00040972,5]
[321044086,1711815038420,-374.60665275,0.00040973,4]
[321044088,1711815038429,-500.0,0.00040973,4]
[321044090,1711815038439,-522.42092913,0.00040973,4]
[321044092,1711815038448,-2261.61,0.00040973,4]
[321044094,1711815038457,-1285.75,0.00040973,4]
[321044096,1711815038467,-500.0,0.00040973,4]
[321044098,1711815038476,-2138.83,0.00040973,4]
[321044100,1711815038486,-1510.08,0.00040973,4]
[321044102,1711815038495,-11901.71,0.00040973,4]
[321044104,1711815038504,-4091.03,0.00040973,4]
[321044106,1711815038513,-2536.76,0.00040973,4]
[321044108,1711815038522,-500.0,0.00040973,31]
[321044110,1711815038531,-500.0,0.00040973,31]
[321044112,1711815038541,-500.0,0.00040973,31]
[321044114,1711815038550,-500.0,0.00040973,31]
[321044116,1711815038561,-283.38470883,0.00040973,31]
[321044118,1711815038572,-501.45,0.00040974,4]
[321044120,1711815038581,-500.0,0.00040974,4]
[321044122,1711815038590,-503.79932805,0.00040974,4]
[321044124,1711815038598,-500.0,0.00040974,4]
[321044126,1711815038609,-2787.0,0.00040974,4]
[321044128,1711815038617,-215.33567274,0.00040974,4]
[321044130,1711815038626,-1013.33,0.00040974,4]
[321044132,1711815038634,-776.78,0.00040974,4]
[321044134,1711815038643,-500.0,0.00040974,4]
[321044136,1711815038654,-2451.07,0.00040974,4]
[321044138,1711815038665,-500.0,0.00040974,4]
[321044140,1711815038674,-500.0,0.00040974,4]
[321044142,1711815038683,-151.0,0.00040974,2]
[321044144,1711815038692,-500.0,0.00040974,4]
[321044146,1711815038703,-878.95,0.00040974,4]
[321044148,1711815038712,-156.86708859,0.00040974,4]
[321044150,1711815038721,-182.413119,0.00040974,2]
[321044152,1711815038731,-500.0,0.00040974,4]
[321044154,1711815038742,-1084.65,0.00040974,4]
[321044156,1711815038752,-500.0,0.00040974,4]
[321044158,1711815038761,-500.0,0.00040974,4]
[321044160,1711815038771,-596.92,0.00040974,4]
[321044162,1711815038780,-500.0,0.00040974,4]
[321044164,1711815038791,-500.0,0.00040974,4]
[321044166,1711815038800,-500.0,0.00040974,4]
[321044168,1711815038809,-500.0,0.00040974,4]
[321044170,1711815038818,-500.0,0.00040974,4]
[321044172,1711815038827,-500.0,0.00040974,4]
[321044174,1711815038836,-605.56758711,0.00040974,4]
[321044176,1711815038845,-32955.82,0.00040974,4]
[321044178,1711815038854,-500.0,0.00040974,4]
[321044180,1711815038864,-502.24080684,0.00040974,4]
[321044182,1711815038872,-502.33635088,0.00040974,4]
[321044183,1711815038882,-2848.25,0.00040974,4]
[321044184,1711815038890,-4739.92,0.00040974,4]
[321044185,1711815038969,-500.0,0.00040974,4]
[321044186,1711815038978,-7890.11,0.00040974,4]
[321044187,1711815038988,-500.0,0.00040974,4]
[321044188,1711815038997,-503.02504387,0.00040974,4]
[321044189,1711815039005,-503.22193262,0.00040974,4]
[321044190,1711815039015,-633.03754406,0.00040974,4]
[321044191,1711815039024,-500.0,0.00040974,4]
[321044192,1711815039032,-500.0,0.00040974,4]
[321044193,1711815039041,-500.0,0.00040974,4]
[321044194,1711815039050,-500.0,0.00040974,4]
[321044195,1711815039059,-155.3180164,0.00040974,4]
[321044196,1711815039070,-500.0,0.00040974,4]
[321044198,1711815039079,-612.86,0.00040974,4]
[321044199,1711815039088,-502.18204444,0.00040974,4]
[321044201,1711815039097,-500.0,0.00040974,4]
[321044203,1711815039106,-151.520716,0.00040974,4]
[321044205,1711815039116,-500.0,0.00040974,4]
[321044207,1711815039125,-589.48235148,0.00040974,4]
[321044209,1711815039135,-500.0,0.00040974,4]
[321044211,1711815039144,-500.0,0.00040974,4]
[321044213,1711815039153,-168.31426327,0.00040974,4]
[321044215,1711815039162,-7146.04,0.00040974,4]
[321044217,1711815039172,-503.20498314,0.00040974,4]
[321044219,1711815039182,-500.0,0.00040974,4]
[321044221,1711815039191,-501.05320169,0.00040974,4]
[321044223,1711815039199,-500.0,0.00040974,4]
[321044225,1711815039208,-500.0,0.00040974,4]
[321044227,1711815039217,-500.0,0.00040974,4]
[321044229,1711815039226,-504.47958364,0.00040974,4]
[321044231,1711815039235,-500.0,0.00040974,4]
[321044233,1711815039245,-748.24,0.00040974,4]
[321044235,1711815039254,-500.0,0.00040974,4]
[321044237,1711815039263,-503.36439019,0.00040974,4]
[321044239,1711815039272,-500.0,0.00040974,4]
[321044241,1711815039281,-500.0,0.00040974,4]
[321044243,1711815039291,-993.49,0.00040974,4]
[321044245,1711815039300,-500.0,0.00040974,4]
[321044247,1711815039310,-500.0,0.00040974,4]
[321044249,1711815039320,-1506.15,0.00040974,4]
[321044251,1711815039328,-500.0,0.00040974,4]
[321044253,1711815039339,-500.0,0.00040974,4]
[321044255,1711815039349,-500.0,0.00040974,4]
[321044257,1711815039358,-629.37,0.00040974,4]
[321044259,1711815039366,-500.0,0.00040974,4]
[321044261,1711815039375,-207.80302942,0.00040975,4]
[321044263,1711815039385,-500.0,0.00040975,4]
[321044265,1711815039394,-151.0,0.00040975,2]
[321044267,1711815039403,-151.0,0.00040975,2]
[321044268,1711815039412,-9394.13,0.00040975,4]
[321044270,1711815039421,-500.0,0.00040975,4]
[321044272,1711815039430,-500.0,0.00040975,4]
[321044274,1711815039439,-39619.07,0.00040975,4]
[321044276,1711815039448,-500.0,0.00040975,4]
[321044278,1711815039457,-500.0,0.00040975,4]
[321044280,1711815039466,-500.0,0.00040975,4]
[321044282,1711815039475,-500.0,0.00040975,4]
[321044284,1711815039484,-500.0,0.00040976,4]
[321044286,1711815039493,-500.0,0.00040976,4]
[321044288,1711815039503,-500.0,0.00040976,4]
[321044290,1711815039512,-500.0,0.00040976,4]
[321044292,1711815039521,-500.0,0.00040976,4]
[321044294,1711815039531,-500.0,0.00040976,4]
[321044296,1711815039539,-294.80332964,0.00040976,4]
[321044297,1711815039549,-500.0,0.00040976,4]
[321044299,1711815039558,-317.76706718,0.00040976,4]
[321044301,1711815039568,-769.41,0.00040976,4]
[321044303,1711815039577,-500.0,0.00040976,4]
[321044305,1711815039586,-500.0,0.00040976,4]
[321044307,1711815039596,-500.0,0.00040976,4]
[321044310,1711815039606,-500.0,0.00040976,4]
[321044311,1711815039615,-500.0,0.00040976,4]
[321044314,1711815039625,-500.0,0.00040976,4]
[321044315,1711815039634,-500.0,0.00040976,4]
[321044317,1711815039643,-439.55270743,0.00040976,4]
[321044320,1711815039653,-500.0,0.00040976,4]
[321044322,1711815039667,-502.25509446,0.00040976,4]
[321044323,1711815039676,-1130.09,0.00040976,4]
[321044325,1711815039685,-500.0,0.00040976,4]
[321044327,1711815039695,-500.0,0.00040976,4]
[321044329,1711815039704,-500.0,0.00040976,4]
[321044331,1711815039713,-500.0,0.00040976,4]
[321044333,1711815039722,-500.0,0.00040976,4]
[321044335,1711815039731,-500.0,0.00040976,4]
[321044337,1711815039741,-500.0,0.00040976,4]
[321044339,1711815039750,-500.0,0.00040976,4]
[321044341,1711815039759,-500.0,0.00040976,4]
[321044344,1711815039768,-500.0,0.00040976,4]
[321044346,1711815039777,-500.0,0.00040976,4]
[321044349,1711815039786,-500.0,0.00040976,4]
[321044352,1711815039795,-360.26864839,0.00040976,4]
[321044354,1711815039803,-500.0,0.00040976,4]
[321044357,1711815039812,-500.0,0.00040976,4]
[321044360,1711815039822,-374.76984536,0.00040976,4]
[321044363,1711815039831,-181.42401461,0.00040976,4]
[321044365,1711815039841,-500.0,0.00040976,4]
[321044368,1711815039849,-500.0,0.00040976,4]
[321044371,1711815039858,-500.0,0.00040976,4]
[321044374,1711815039867,-500.0,0.00040976,4]
[321044376,1711815039877,-500.0,0.00040976,4]
[321044379,1711815039886,-179.244199,0.00040976,2]
[321044382,1711815039895,-500.0,0.00040976,4]
[321044385,1711815039904,-500.0,0.00040976,30]
[321044387,1711815039913,-500.0,0.00040976,4]
[321044391,1711815039921,-500.0,0.00040976,4]
[321044393,1711815039930,-500.0,0.00040976,4]
[321044397,1711815039939,-500.0,0.00040976,4]
[321044400,1711815039948,-500.0,0.00040976,4]
[321044401,1711815039956,-500.0,0.00040976,4]
[321044403,1711815039965,-500.0,0.00040976,4]
[321044405,1711815039974,-500.0,0.00040976,4]
[321044407,1711815039983,-500.0,0.00040976,4]
[321044409,1711815039991,-500.0,0.00040976,4]
[321044411,1711815040000,-501.99689691,0.00040976,4]
[321044413,1711815040010,-565.14,0.00040976,4]
[321044415,1711815040019,-1030.52256613,0.00040976,14]
[321044417,1711815040028,-500.0,0.00040976,4]
[321044419,1711815040037,-500.0,0.00040976,4]
[321044421,1711815040046,-500.0,0.00040976,4]
[321044423,1711815040054,-497.79311763,0.00040976,4]
[321044425,1711815040063,-500.0,0.00040976,4]
[321044427,1711815040074,-501.76111315,0.00040976,4]
[321044429,1711815040083,-500.0,0.00040976,4]
[321044431,1711815040092,-500.0,0.00040976,4]
[321044433,1711815040101,-2398.54,0.00040976,4]
[321044435,1711815040110,-501.65958658,0.00040976,4]
[321044437,1711815040118,-500.0,0.00040976,4]
[321044439,1711815040127,-500.0,0.00040976,4]
[321044441,1711815040137,-500.0,0.00040976,4]
[321044443,1711815040146,-502.5883259,0.00040976,4]
[321044445,1711815040155,-500.0,0.00040976,4]
[321044447,1711815040163,-500.0,0.00040976,4]
[321044449,1711815040172,-500.0,0.00040976,4]
[321044451,1711815040181,-502.9888996,0.00040976,4]
[321044453,1711815040190,-500.0,0.00040976,4]
[321044455,1711815040199,-500.0,0.00040976,4]
[321044457,1711815040207,-556.19054406,0.00040976,4]
[321044465,1711815040217,-500.0,0.00040976,4]
[321044468,1711815040288,-500.0,0.00040976,4]
[321044469,1711815040298,-500.0,0.00040976,4]
[321044472,1711815040307,-500.0,0.00040976,4]
[321044474,1711815040318,-500.0,0.00040976,4]
[321044476,1711815040327,-500.0,0.00040976,4]
[321044477,1711815040336,-500.0,0.00040976,4]
[321044479,1711815040345,-500.0,0.00040976,4]
[321044481,1711815040355,-546.68,0.00040976,4]
[321044483,1711815040364,-500.0,0.00040976,4]
[321044486,1711815040374,-501.10335025,0.00040976,4]
[321044487,1711815040382,-500.0,0.00040976,4]
[321044489,1711815040392,-505.71132275,0.00040976,4]
[321044491,1711815040401,-500.0,0.00040976,4]
[321044493,1711815040411,-500.0,0.00040976,4]
[321044495,1711815040420,-500.0,0.00040976,4]
[321044497,1711815040430,-502.60245389,0.00040976,4]
[321044499,1711815040439,-500.0,0.00040976,4]
[321044501,1711815040448,-393.34445279,0.00040976,4]
[321044503,1711815040457,-500.0,0.00040976,4]
[321044505,1711815040466,-500.0,0.00040976,4]
[321044508,1711815040476,-500.0,0.00040976,4]
[321044509,1711815040485,-501.17561677,0.00040976,4]
[321044511,1711815040495,-500.0,0.00040976,4]
[321044514,1711815040504,-550.17,0.00040976,4]
[321044516,1711815040514,-500.0,0.00040976,4]
[321044517,1711815040523,-173.890747,0.00040976,2]
[321044520,1711815040533,-173.890747,0.00040976,2]
[321044521,1711815040542,-173.890747,0.00040976,2]
[321044523,1711815040551,-173.890747,0.00040976,2]
[321044525,1711815040561,-173.890747,0.00040976,2]
[321044526,1711815040570,-173.890747,0.00040976,2]
[321044527,1711815040580,-173.890747,0.00040976,2]
[321044528,1711815040589,-173.890747,0.00040976,2]
[321044529,1711815040598,-173.890747,0.00040976,2]
[321044530,1711815040608,-173.890747,0.00040976,2]
[321044531,1711815040617,-173.890747,0.00040976,2]
[321044532,1711815040626,-71.70229016,0.00040976,2]
[321044533,1711815040745,-102.18845684,0.00040976,2]
[321044534,1711815040755,-173.890747,0.00040976,2]
[321044535,1711815040764,-173.890747,0.00040976,2]
[321044536,1711815040774,-173.890747,0.00040976,2]
[321044537,1711815040783,-173.890747,0.00040976,2]
[321044538,1711815040792,-173.890747,0.00040976,2]
[321044539,1711815040801,-173.890747,0.00040976,2]
[321044540,1711815040810,-589.63,0.00040976,4]
[321044541,1711815040819,-500.0,0.00040976,4]
[321044542,1711815040828,-333.73396876,0.00040976,4]
[321044543,1711815040839,-166.26603124,0.00040976,4]
[321044544,1711815040849,-500.0,0.00040976,4]
[321044545,1711815040858,-259.48396876,0.00040976,4]